Cogmind - Beta 10.2 *** ADVENTURER MODE // 2020.12.30 @ 23:27:01 Player: Huntingteckel Result: Destroyed by G-47 Trooper with Particle Gun Performance ------------- Evolutions (2) 1000 Regions Visited (3) 600 Robots Destroyed (28) 140 Value Destroyed (749) 749 Prototype IDs (0) 0 Alien Tech Used (0) 0 Bonus (0) 0 TOTAL SCORE: 2489 Bonus ------- None Cogmind --------- Core Integrity 0/550 Matter 300/300 Energy 100/100 System Corruption 0% Temperature Cool (18) Movement Core (300) Ox5 Location -8/Materials Parts ------- > --- POWER (2) -------- (None) > --- PROPULSION (4) --- (None) > --- UTILITY (3) ------ Large Storage Unit > --- WEAPON (2) ------- (None) > --- INVENTORY (10) --- (None) Peak State ------------ > --- POWER ------------ Ion Engine Ion Engine > --- PROPULSION ------- Aluminum Leg Aluminum Leg Wheel > --- UTILITY ---------- Small Storage Unit Large Storage Unit > --- WEAPON ----------- Light EM Pulse Cannon Light Assault Rifle > --- INVENTORY -------- Light Treads Light Treads Wheel Flight Unit [Rating: 10] Favorites ----------- Power Ion Engine Engine Ion Engine Propulsion Aluminum Leg Leg Aluminum Leg Wheel Wheel Flight Unit Flight Unit Utility Small Storage Unit Storage Small Storage Unit Weapon Light Assault Rifle Energy Gun EM Pulse Gun Energy Cannon Light EM Pulse Cannon Ballistic Gun Light Assault Rifle Launcher Grenade Launcher Build | -11 -10 -9 -8 ------- Run | Scr Mat Mat Mat Slots Evolved 4 | . . 2 2 Power 1 | . . 1 . Propulsion 2 | . . 1 1 Utility 1 | . . . 1 Weapon . | . . . . Parts Attached 17 | . 1 8 8 Power 4 | . . 3 1 Engine 4 | . . 3 1 Core . | . . . . Reactor . | . . . . Propulsion 6 | . . 2 4 Treads . | . . . . Leg 3 | . . 1 2 Wheel 2 | . . 1 1 Hover . | . . . . Flight 1 | . . . 1 Utility 1 | . . 1 . Device . | . . . . Storage 1 | . . 1 . Processor . | . . . . Hackware . | . . . . Protection . | . . . . Artifact . | . . . . Weapon 6 | . 1 2 3 Energy Gun 1 | . . . 1 Energy Cannon 1 | . . 1 . Ballistic Gun 3 | . 1 1 1 Ballistic Cannon . | . . . . Launcher 1 | . . . 1 Special Weapon . | . . . . Impact Weapon . | . . . . Slashing Weapon . | . . . . Piercing Weapon . | . . . . Special Melee Weapon . | . . . . Unidentified Prototypes . | . . . . Parts Lost 18 | . 1 4 13 Power 4 | . . 1 3 Propulsion 6 | . . 1 5 Utility 1 | . . . 1 Weapon 7 | . 1 2 4 Highest Loss Streak 13 | . 1 3 13 Average Slot Usage (%) 81 | . 84 87 54 Engine 16 | . 14 20 10 Leg 23 | . 28 26 1 Wheel 2 | . . . 12 Storage 17 | . 14 20 18 Energy Gun 4 | . 12 . . Energy Cannon 1 | . . 1 6 Ballistic Gun 14 | . 14 18 . Naked Turns . | . . . . Heaviest Build 37 | 12 12 35 37 Greatest Support 30 | 20 20 30 20 Greatest Overweight (x) 7 | . . 3 7 Average Overweight (x) . | . . . 1 Largest Inventory Capacity 12 | 6 6 12 12 Average Capacity 9 | 6 6 10 11 Most Carried 7 | 6 6 7 6 Average Carried 5 | 6 5 5 3 Final Capacity 12 | 6 6 12 10 Final Carried 6 | 6 5 4 . Class Distribution -------------------- 100% | Mutant Dominant Class ---------------- Mutant | -10/Materials Mutant | -9/Materials Mutant | -8/Materials Resources | -11 -10 -9 -8 ----------- Run | Scr Mat Mat Mat Matter Collected 509 | 202 29 230 48 Remotely . | . . . . Salvage Created 819 | 22 163 476 158 Parts 72 | 3 20 40 9 Haulers Intercepted . | . . . . Recyclers Shooed 1 | . . . 1 Parts Field Recycled . | . . . . Retrieved Matter . | . . . . Parts Self-Destructed . | . . . . Prevented . | . . . . Kills | -11 -10 -9 -8 ------- Run | Scr Mat Mat Mat Combat Hostiles Destroyed 23 | . 7 12 4 Guns 18 | . 7 11 . Cannons 4 | . . 1 3 AOE 1 | . . . 1 Classes Destroyed 7 | 1 3 1 2 Tunneler 1 | 1 . . . Watcher 4 | . 1 3 . Swarmer 12 | . 6 6 . Grunt 5 | . 1 3 1 Brawler 1 | . . . 1 Duelist 2 | . . . 2 Sentry 3 | . . 3 . Best Kill Streak 4 | 1 3 4 3 Combat Bots Only 4 | . 3 4 3 Max Kills in Single Turn 2 | 1 1 1 2 Gunslinging . | . . . . Exploded 1 | . . . 1 Melee . | . . . . Uniques/NPCs Destroyed . | . . . . Combat | -11 -10 -9 -8 -------- Run | Scr Mat Mat Mat Damage Taken 2181 | . 155 692 1334 Core 686 | . 22 109 555 Absorbed by Shields . | . . . . Core Remaining (%) 87 | 100 91 72 . Volleys Fired 85 | 2 24 51 8 Largest 2 | 2 2 2 2 Hottest 86 | 60 60 76 86 Shots Fired 152 | 4 44 92 12 Gun 139 | 4 44 91 . Cannon 9 | . . 1 8 Launcher 4 | . . . 4 Special . | . . . . Kinetic 117 | 2 24 91 . Thermal . | . . . . Explosive 4 | . . . 4 Electromagnetic 31 | 2 20 1 8 Robot Hit Streak 20 | 1 16 20 20 Robot Miss Streak 4 | 2 4 4 . Penetration Max . | . . . . Secondary Targets 3 | . . 3 . Max Gunslinging Chain 1 | . . 1 . Shots Hit Robots 107 | 1 28 70 8 Core Hits 53 | 1 10 24 18 Critical Hits . | . . . . Critical Kills . | . . . . Critical Parts Destroyed . | . . . . Melee Attacks . | . . . . Impact . | . . . . Slashing . | . . . . Piercing . | . . . . Sneak Attacks . | . . . . Combat Hostiles . | . . . . Follow-up Attacks . | . . . . Damage Inflicted 1280 | 13 213 665 389 Guns 859 | 13 213 633 . Cannons 158 | . . 20 138 Explosions 245 | . . . 245 Melee . | . . . . Ramming 18 | . . 12 6 Kinetic 691 | . 58 633 . Thermal . | . . . . Explosive 245 | . . . 245 Electromagnetic 326 | 13 155 20 138 Impact . | . . . . Slashing . | . . . . Piercing . | . . . . Highest Corruption . | . . . . Average Corruption . | . . . . Corruption Purged . | . . . . Overload Shots . | . . . . Overflow Damage 4 | . . . 4 Projectiles . | . . . . Explosions 4 | . . . 4 Melee . | . . . . Knockbacks . | . . . . Impact . | . . . . Kinetic . | . . . . Secondary . | . . . . Self-Inflicted Damage 25 | . . . 25 Shots 2 | . . . 2 Rammed 9 | . . 1 8 Targets Rammed 11 | . . 3 8 Kicked 2 | . . 2 . Crushed . | . . . . Highest Temperature 111 | 20 58 30 111 Average Temperature 17 | 15 25 5 37 Received Heat Transfer 1122 | . 24 234 864 Siege Activations . | . . . . Robots Corrupted . | . . . . Combat Hostiles . | . . . . Parts Fried . | . . . . Impact Corruptions . | . . . . Robots Melted . | . . . . Combat Hostiles . | . . . . Parts Melted . | . . . . Heat Transferred . | . . . . Parts Sabotaged . | . . . . Parts Stolen . | . . . . Parts Stripped . | . . . . Power Chain Reactions . | . . . . Missiles Intercepted . | . . . . Alert | -11 -10 -9 -8 ------- Run | Scr Mat Mat Mat Peak Influence 307 | 5 159 281 307 Initial 72 | . 2 32 72 Average 118 | 4 75 158 149 Maximum Alert Level 1 | . . 1 1 Low Security (%) 78 | 100 100 64 57 Level 1 21 | . . 35 42 Level 2 . | . . . . Level 3 . | . . . . Level 4 . | . . . . Level 5 . | . . . . High Security . | . . . . Max Security . | . . . . Squads Dispatched 4 | . . 1 3 Investigation 1 | . . . 1 Extermination . | . . . . Reinforcement 1 | . . 1 . Assault 1 | . . . 1 Garrison 1 | . . . 1 Intercept . | . . . . Construction Impeded . | . . . . Haulers Reinforced . | . . . . Stealth | -11 -10 -9 -8 --------- Run | Scr Mat Mat Mat Distress Signals 4 | . 1 3 . Communications Jammed . | . . . . Distress Signals . | . . . . Times Spotted 54 | . 13 24 17 Peak Tracking Total 8 | . 4 5 8 Tactical Retreats 5 | . 3 2 . Traps | -11 -10 -9 -8 ------- Run | Scr Mat Mat Mat Traps Triggered . | . . . . Indirectly . | . . . . Trap Hack Attempts . | . . . . Triggered . | . . . . Disarmed . | . . . . Reprogrammed . | . . . . Reused . | . . . . Traps Extracted . | . . . . Installed . | . . . . Triggered . | . . . . Machines | -11 -10 -9 -8 ---------- Run | Scr Mat Mat Mat Machines Disabled 2 | . . . 2 Max in Single Turn 1 | . . . 1 Garrison Access 1 | . . . 1 Machines Sabotaged . | . . . . Garrisons Compromised . | . . . . Overloaded Fab Kills . | . . . . Fab Network Shutdowns . | . . . . Hacking | -11 -10 -9 -8 --------- Run | Scr Mat Mat Mat Machines Accessed 1 | . . . 1 Terminals 1 | . . . 1 Fabricators . | . . . . Repair Stations . | . . . . Recycling Units . | . . . . Scanalyzers . | . . . . Garrison Access . | . . . . Total Hacks 6 | . . . 6 Successful 6 | . . . 6 Failed . | . . . . Catastrophic . | . . . . Database Lockouts . | . . . . Manual . | . . . . Terminals 6 | . . . 6 Fabricators . | . . . . Repair Stations . | . . . . Recycling Units . | . . . . Scanalyzers . | . . . . Garrison Access . | . . . . Terminal Hacks 6 | . . . 6 Record 3 | . . . 3 Alert Level 3 | . . . 3 Fabricator Hacks . | . . . . Repair Station Hacks . | . . . . Recycling Unit Hacks . | . . . . Scanalyzer . | . . . . Garrison Access Hacks . | . . . . Unauthorized Hacks . | . . . . Terminals . | . . . . Fabricators . | . . . . Repair Stations . | . . . . Recycling Units . | . . . . Scanalyzers . | . . . . Garrison Access . | . . . . Data Cores Recovered . | . . . . Used . | . . . . Hacking Detections 1 | . . . 1 Full Trace Events 1 | . . . 1 Feedback Events . | . . . . Feedback Blocked . | . . . . Robot Schematics Acquired . | . . . . Robots Built . | . . . . Matter . | . . . . Time . | . . . . Total Robot Build Rating . | . . . . Part Schematics Acquired . | . . . . Parts Built . | . . . . Matter . | . . . . Time . | . . . . Total Part Build Rating . | . . . . Parts Repaired . | . . . . Time . | . . . . Parts Recycled . | . . . . Recycled Matter . | . . . . Retrieved Matter . | . . . . Retrieved Components . | . . . . Parts Scanalyzed . | . . . . Part Schematics Acquired . | . . . . Parts Damaged . | . . . . Bothacking | -11 -10 -9 -8 ------------ Run | Scr Mat Mat Mat Used RIF Installer . | . . . . Robots Hacked . | . . . . Non-combat . | . . . . Combat . | . . . . Robot Hacks Applied . | . . . . Relay Couplers Released . | . . . . Robots Rewired . | . . . . Allies Hacked . | . . . . Hacks Repelled . | . . . . Allies | -11 -10 -9 -8 -------- Run | Scr Mat Mat Mat Total Allies . | . . . . Largest Group . | . . . . Highest-Rated Group . | . . . . Highest-Rated Ally . | . . . . Total Orders . | . . . . Ally Attacks . | . . . . Total Damage . | . . . . Kills . | . . . . Allies Corrupted . | . . . . Allies Melted . | . . . . Intel | -11 -10 -9 -8 ------- Run | Scr Mat Mat Mat Robot Analysis Total . | . . . . Derelict Logs Recovered . | . . . . Drone Launches . | . . . . Drone Recoveries . | . . . . Exploration | -11 -10 -9 -8 ------------- Run | Scr Mat Mat Mat Turns Passed 1431 | 88 500 634 209 Spaces Moved 816 | 65 338 283 130 Core 5 | . . . 5 Treads . | . . . . Legs 675 | 65 338 269 3 Wheels 136 | . . 14 122 Hover . | . . . . Flight . | . . . . Fastest Speed 90 | 120 120 110 90 Average Speed 125 | 120 120 142 104 Slowest Speed 400 | 120 120 150 400 Overloaded Moves . | . . . . Propulsion Burnouts . | . . . . Robots Hopped . | . . . . Cave-ins Triggered . | . . . . Exploration Rate (%) 22 | 3 49 31 7 Regions Visited 3 Branch Regions . Pre-discovered Areas . | . . . . Known Exits Taken . | . . . . Unknown Exits Taken 3 | 1 1 1 . Scrap Searched . | . . . . Spaces Dug . | . . . . Terrain Destroyed 15 | . . . 15 Melee . | . . . . Projectile . | . . . . AOE 15 | . . . 15 Terrain Rammed . | . . . . Walls Destroyed . | . . . . Machines Disabled . | . . . . Actions | -11 -10 -9 -8 --------- Run | Scr Mat Mat Mat Total 1072 | 71 397 430 174 Wait 127 | 5 31 79 12 Move 813 | 64 337 282 130 Hop . | . . . . Pick Up 11 | . 2 6 3 Fast Attach . | . . . . Attach 17 | . 1 8 8 Detach 4 | . . 1 3 Swap . | . . . . Drop 4 | . 2 . 2 Fire 85 | 2 24 51 8 Melee . | . . . . Ram 8 | . . . 8 Kick 3 | . . 3 . Crush . | . . . . Escape Stasis . | . . . . Rewire . | . . . . Trap . | . . . . Miscellaneous . | . . . . Route ------- -11/Scrapyard -10/Materials (discovered 2 exits: [*Mat] / [*Min]) -9/Materials (discovered 2 exits: *Mat / [*Min]) -8/Materials History --------- Turn | Location | Event 1 | -11/Scrapyard | Discovered new exit (range 3) 89 | -11/Scrapyard | Entered Materials 309 | -10/Materials | Build established: Mutant 397 | -10/Materials | Discovered new exit (range 14) 573 | -10/Materials | Discovered new exit (range 13) 589 | -10/Materials | Entered another Materials area 589 | -9/Materials | Evolved 2 slots: Power x1, Propulsion x1 969 | -9/Materials | Discovered new exit (range 13) 1162 | -9/Materials | Lost 3 parts (1p1n1w) 1215 | -9/Materials | Discovered new exit (range 9) 1223 | -9/Materials | Entered another Materials area 1223 | -8/Materials | Evolved 2 slots: Propulsion x1, Utility x1 1337 | -8/Materials | Garrison activated, responded to threat 1416 | -8/Materials | Core integrity fell below 50% 1428 | -8/Materials | Core integrity fell below 20% 1432 | -8/Materials | Destroyed by G-47 Trooper with Particle Gun Last Messages --------------- 01416_ G-50 Soldier unfolds itself. 01416_ G-47 Trooper unfolds itself. 01416_ L-31 Rogue unfolds itself. 01416_ G-47 Trooper unfolds itself. 01416_ M-28 Smith unfolds itself. 01416_ U-05 Engineer lays Concrete. 01418_ Flight Unit destroyed. 01418_ Slammed into G-47 Trooper. 01419_ U-05 Engineer lays Concrete. 01420_ K-01 Serf collects debris. 01420_ U-05 Engineer lays Concrete. 01422_ Slammed into G-47 Trooper. 01423_ U-05 Engineer lays Concrete. 01424_ U-05 Engineer builds a Wall. 01425_ Slammed into G-47 Trooper. 01427_ K-01 Serf collects debris. 01429_ Slammed into G-50 Soldier. 01430_ U-05 Engineer lays Concrete. 01430_ Sml. Storage Unit destroyed. 01431_ U-05 Engineer lays Concrete. Map ----- +----------------------------------------------------+ | ?????????????????????????????????? | | ?????????????????????????????????? | | ?????????????????????????????????? | | ?????????????????????????????????? | | ?????????????????????????????????? | | ?????????????????????????????????? | | ?????????????????????????????????? | | ?????????????????????????????????? | | ??????????????#? ????????????????? | | ??????????????# ???????????????? | | ??????????????# ???????????????? | | ??????????##??#^^ +??????????????? | | ???????????= ?# #??????????????? | | ???????????? # ######?????????? | | ????????????? # #?????????? | | ??????????????+ ########??? | | ??????????????# # ### #??? | | ??????????????# %# #??? | | ??????????????# # ##?? | | ??????????????# # / #?? | | ??????????????# ]]]# ##?? | | ??????????????# ]]]# #??? | | ??????????????# ] # u #??? | | ??????????????# = ##k#####??? | | ??????????????# = ggg ##???? | | ??????????????# g%@l #????? | | ????########### *% gg #????? | | ????# # " um #????? | | ????# """"" # G" g #????? | | ????# """"" # "" #????? | | ????# """"" + #????? | | ????# # #????? | | ????# # ####### #????? | | ????# "T" # # # #????? | | ????# """ #####! # #????? | | ????###########???# + #????? | | ??????????????????# "" # #????? | | ??????????????????# """ #####????? | | ??????????????????# S" #????????? | | ??????????????????# """ #????????? | | ??????????????????# """ #????????? | | ??????????????????# #????????? | | ??????????????????######?????????? | | ?????????????????????????????????? | | | | | | | | | | | | | +----------------------------------------------------+ Best States ------------- Heat Dissipation 31 Energy Generation 15 Energy Capacity 400 Matter Stores 300 Matter Capacity 300 Sight Range 16 Terrain Scan Density 10 Resistance: KI 20 Resistance: TH 20 Resistance: EX 20 Resistance: EM 20 Resistance: I 20 Resistance: S 20 Resistance: P 20 Evasion (%) 42 Offensive Hacking 10 Item Schematics ----------------- None Robot Schematics ------------------ None Fabricated ------------ Nothing Alien Tech Used ----------------- None Achievements -------------- None Challenges ------------ None Game ------ Seed RestorationBombScanner Manual? 0 Play Time 00:28:36 Cumulative 17.2 hours Start 2020.12.30 @ 22:47:54 End 2020.12.30 @ 23:27:01 Sessions 1 Manual Loads 0 Difficulty Adventurer Special Mode None Game No. 27 Rogue 0 Adventurer 27 Explorer 0 Win Type - Total 0 Types 0/0/0/0/0/0/0/0/0 Lore% 5 Gallery% 20 Achievement% 17 Wizard Run 0 Options --------- ASCII 1 Keyboard 0 Movement Numpad Keybinds 0 Fullscreen 2 Font 18/X11 Map View 76x50 Tactical HUD 1 Map Filters NONE Filters NONE Steam 1 RUN: 6839d3e9-4e26-4f77-bcc0-bfe7176948e8